fUSD/lending_fUSD_20250302
["ID","MTS","AMOUNT","RATE_DAILY","PERIOD"]
[355049188,1740881452365,-500.0,0.00025479,2]
[355049190,1740881452375,-255.76152232,0.00025479,2]
[355049192,1740881452384,-500.0,0.00025479,2]
[355049194,1740881452394,-500.0,0.00025479,2]
[355049196,1740881452403,-178.60612283,0.00025479,2]
[355049199,1740881452423,-321.39387717,0.00025479,2]
[355049201,1740881452432,-762.378887,0.00025479,2]
[355049203,1740881452441,-500.0,0.00025479,2]
[355049205,1740881452451,-500.0,0.00025479,2]
[355049207,1740881452461,-500.0,0.00025479,2]
[355049209,1740881452470,-500.0,0.00025479,2]
[355049211,1740881452480,-500.0,0.00025479,2]
[355049213,1740881452489,-500.0,0.00025479,2]
[355049215,1740881452499,-500.0,0.00025479,2]
[355049217,1740881452508,-500.0,0.00025479,2]
[355049219,1740881452517,-500.0,0.00025479,2]
[355049220,1740881452527,-500.0,0.00025479,2]
[355049222,1740881452536,-500.0,0.00025479,2]
[355049224,1740881452546,-500.0,0.00025479,2]
[355049226,1740881452555,-500.0,0.00025479,2]
[355049228,1740881452566,-523.56,0.00025479,2]
[355049230,1740881452575,-806.12,0.00025479,2]
[355049232,1740881452585,-500.0,0.00025479,2]
[355049234,1740881452595,-500.0,0.00025479,2]
[355049236,1740881452605,-500.0,0.00025479,2]
[355049238,1740881452615,-517.33,0.00025479,2]
[355049240,1740881452624,-500.0,0.00025479,2]
[355049242,1740881452633,-500.0,0.00025479,2]
[355049244,1740881452643,-500.0,0.00025479,2]
[355049246,1740881452652,-500.0,0.00025479,2]
[355049248,1740881452663,-500.0,0.00025479,2]
[355049250,1740881452672,-746.37,0.00025479,2]
[355049252,1740881452682,-500.0,0.00025479,2]
[355049254,1740881452692,-500.0,0.00025479,2]
[355049256,1740881452703,-368.61557069,0.00025479,2]
[355049258,1740881452712,-1782.87,0.00025479,2]
[355049259,1740881452722,-500.0,0.00025479,2]
[355049262,1740881452732,-500.0,0.00025479,2]
[355049263,1740881452742,-500.0,0.00025479,2]
[355049265,1740881452752,-562.75,0.00025479,2]
[355049268,1740881452765,-500.0,0.00025479,2]
[355049269,1740881452775,-500.0,0.00025479,2]
[355049271,1740881452785,-500.0,0.00025479,2]
[355049273,1740881452795,-500.0,0.00025479,2]
[355049275,1740881452804,-500.0,0.00025479,2]
[355049277,1740881452814,-500.0,0.00025479,2]
[355049279,1740881452824,-500.0,0.00025479,2]
[355049281,1740881452835,-500.0,0.00025479,2]
[355049283,1740881452844,-500.0,0.00025479,2]
[355049285,1740881452854,-1742.16,0.00025479,2]
[355049287,1740881452864,-500.0,0.00025479,2]
[355049289,1740881452873,-500.0,0.00025479,2]
[355049291,1740881452882,-393.94861812,0.00025479,2]
[355049293,1740881452891,-500.0,0.00025479,2]
[355049295,1740881452901,-500.0,0.00025479,2]
[355049297,1740881452910,-500.0,0.00025479,2]
[355049299,1740881452921,-500.0,0.00025479,2]
[355049300,1740881452931,-1760.63,0.00025479,2]
[355049302,1740881452940,-500.0,0.00025479,2]
[355049304,1740881452950,-742.99,0.00025479,2]
[355049306,1740881452960,-500.0,0.00025479,2]
[355049308,1740881452969,-500.0,0.00025479,2]
[355049310,1740881452979,-1640.74,0.00025479,2]
[355049312,1740881452988,-2520.02,0.00025479,2]
[355049314,1740881452998,-500.0,0.00025479,2]
[355049316,1740881453008,-500.0,0.00025479,2]
[355049318,1740881453017,-558.36,0.00025479,2]
[355049320,1740881453027,-500.0,0.00025479,2]
[355049322,1740881453036,-913.31,0.00025479,2]
[355049324,1740881453047,-500.0,0.00025479,2]
[355049326,1740881453056,-500.0,0.00025479,2]
[355049328,1740881453066,-1012.61,0.00025479,2]
[355049330,1740881453075,-512.01,0.00025479,2]
[355049332,1740881453085,-500.0,0.00025479,2]
[355049334,1740881453097,-501.78,0.00025479,2]
[355049336,1740881453107,-549.2590741,0.00025479,2]
[355049338,1740881453119,-500.0,0.00025479,2]
[355049339,1740881453130,-500.0,0.00025479,2]
[355049341,1740881453139,-500.0,0.00025479,2]
[355049343,1740881453151,-500.0,0.00025479,2]
[355049345,1740881453160,-500.0,0.00025479,2]
[355049347,1740881453171,-500.0,0.00025479,2]
[355049349,1740881453180,-500.0,0.00025479,2]
[355049351,1740881453190,-500.0,0.00025479,2]
[355049353,1740881453201,-500.0,0.00025479,2]
[355049355,1740881453211,-500.0,0.00025479,2]
[355049357,1740881453220,-500.0,0.00025479,2]
[355049359,1740881453229,-500.0,0.00025479,2]
[355049361,1740881453239,-500.0,0.00025479,2]
[355049363,1740881453248,-1913.28,0.00025479,2]
[355049380,1740881453258,-509.65,0.00025479,2]
[355049383,1740881453438,-500.0,0.00025479,2]
[355049385,1740881453448,-500.0,0.00025479,2]
[355049387,1740881453457,-500.0,0.00025479,2]
[355049389,1740881453467,-1667.9,0.00025479,2]
[355049391,1740881453476,-500.0,0.00025479,2]
[355049393,1740881453486,-500.0,0.00025479,2]
[355049395,1740881453495,-500.0,0.00025479,2]
[355049396,1740881453505,-500.0,0.00025479,2]
[355049398,1740881453514,-500.0,0.00025479,2]
[355049400,1740881453523,-500.0,0.00025479,2]
[355049402,1740881453533,-500.0,0.00025479,2]
[355049404,1740881453542,-2313.28,0.00025479,2]
[355049406,1740881453551,-1188.31,0.00025479,2]
[355049408,1740881453561,-500.0,0.00025479,2]
[355049410,1740881453570,-500.0,0.00025479,2]
[355049412,1740881453579,-500.0,0.00025479,2]
[355049414,1740881453589,-500.0,0.00025479,2]
[355049416,1740881453598,-500.0,0.00025479,2]
[355049418,1740881453607,-500.0,0.00025479,2]
[355049420,1740881453621,-847.63,0.00025479,2]
[355049421,1740881453630,-610.13,0.00025479,2]
[355049423,1740881453639,-602.12,0.00025479,2]
[355049425,1740881453648,-500.0,0.00025479,2]
[355049427,1740881453657,-500.0,0.00025479,2]
[355049429,1740881453667,-500.0,0.00025479,2]
[355049431,1740881453677,-500.0,0.00025479,2]
[355049433,1740881453686,-500.0,0.00025479,2]
[355049435,1740881453695,-500.0,0.00025479,2]
[355049437,1740881453704,-1701.83,0.00025479,2]
[355049439,1740881453713,-500.0,0.00025479,2]
[355049441,1740881453723,-500.0,0.00025479,2]
[355049443,1740881453732,-1199.39,0.00025479,2]
[355049445,1740881453741,-500.0,0.00025479,2]
[355049446,1740881453751,-500.0,0.00025479,2]
[355049448,1740881453760,-500.0,0.00025479,2]
[355049450,1740881453773,-500.0,0.00025479,2]
[355049452,1740881453783,-500.0,0.00025479,2]
[355049454,1740881453791,-500.0,0.00025479,2]
[355049456,1740881453801,-958.87,0.00025479,2]
[355049458,1740881453811,-500.0,0.00025479,2]
[355049460,1740881453820,-500.0,0.00025479,2]
[355049462,1740881453830,-537.3,0.00025479,2]
[355049464,1740881453840,-500.0,0.00025479,2]
[355049466,1740881453850,-1396.67,0.00025479,2]
[355049468,1740881453859,-1134.14,0.00025479,2]
[355049469,1740881453868,-614.8,0.00025479,2]
[355049471,1740881453878,-500.0,0.00025479,2]
[355049473,1740881453888,-593.89,0.00025479,2]
[355049475,1740881453897,-771.92,0.00025479,2]
[355049476,1740881453906,-665.36,0.00025479,2]
[355049477,1740881453915,-1956.37,0.00025479,2]
[355049478,1740881453925,-500.0,0.00025479,2]
[355049479,1740881453934,-586.29,0.00025479,2]
[355049480,1740881453944,-580.23,0.00025479,2]
[355049481,1740881453953,-1160.2,0.00025479,2]
[355049482,1740881453962,-500.0,0.00025479,2]
[355049483,1740881453971,-500.0,0.00025479,2]
[355049484,1740881453981,-2219.8,0.00025479,2]
[355049485,1740881453990,-500.0,0.00025479,2]
[355049486,1740881453999,-557.69,0.00025479,2]
[355049487,1740881454009,-500.0,0.00025479,2]
[355049488,1740881454019,-964.89,0.00025479,2]
[355049489,1740881454028,-2314.44,0.00025479,2]
[355049490,1740881454038,-644.5,0.00025479,2]
[355049491,1740881454047,-599.6,0.00025479,2]
[355049492,1740881454056,-1202.37,0.00025479,2]
[355049493,1740881454066,-503.61,0.00025479,2]
[355049494,1740881454076,-530.02,0.00025479,2]
[355049495,1740881454086,-1069.38,0.00025479,2]
[355049496,1740881454095,-500.0,0.00025479,2]
[355049497,1740881454105,-500.0,0.00025479,2]
[355049498,1740881454115,-500.0,0.00025479,2]
[355049499,1740881454125,-515.39,0.00025479,2]
[355049501,1740881454134,-2281.49,0.00025479,2]
[355049503,1740881454145,-1000.0,0.00025479,2]
[355049505,1740881454154,-500.0,0.00025479,2]
[355049507,1740881454164,-500.0,0.00025479,2]
[355049509,1740881454174,-2804.56,0.00025479,2]
[355049511,1740881454183,-500.0,0.00025479,2]
[355049513,1740881454193,-2255.73,0.00025479,2]
[355049515,1740881454202,-500.0,0.00025479,2]
[355049517,1740881454211,-500.0,0.00025479,2]
[355049518,1740881454220,-2017.47,0.00025479,2]
[355049520,1740881454230,-1699.31,0.00025479,2]
[355049522,1740881454239,-500.0,0.00025479,2]
[355049524,1740881454248,-500.0,0.00025479,2]
[355049526,1740881454257,-500.0,0.00025479,2]
[355049528,1740881454267,-846.46,0.00025479,2]
[355049530,1740881454276,-500.0,0.00025479,2]
[355049532,1740881454286,-500.0,0.00025479,2]
[355049535,1740881454296,-2302.87,0.00025479,2]
[355049537,1740881454305,-500.0,0.00025479,2]
[355049538,1740881454314,-500.0,0.00025479,2]
[355049541,1740881454325,-2423.42,0.00025479,2]
[355049542,1740881454334,-637.46,0.00025479,2]
[355049544,1740881454344,-500.0,0.00025479,2]
[355049546,1740881454353,-500.0,0.00025479,2]
[355049548,1740881454363,-2023.4,0.00025479,2]
[355049550,1740881454372,-500.0,0.00025479,2]
[355049552,1740881454382,-795.79,0.00025479,2]
[355049554,1740881454391,-500.0,0.00025479,2]
[355049556,1740881454400,-2525.09,0.00025479,2]
[355049558,1740881454409,-554.8,0.00025479,2]
[355049560,1740881454419,-608.49,0.00025479,2]
[355049562,1740881454428,-656.5,0.00025479,2]
[355049564,1740881454438,-500.0,0.00025479,2]
[355049566,1740881454447,-767.78,0.00025479,2]
[355049568,1740881454457,-2637.67,0.00025479,2]
[355049570,1740881454467,-998.66,0.00025479,2]
[355049572,1740881454476,-773.6,0.00025479,2]
[355049574,1740881454486,-913.4,0.00025479,2]
[355049576,1740881454495,-500.0,0.00025479,2]
[355049578,1740881454505,-500.0,0.00025479,2]
[355049580,1740881454515,-2612.14,0.00025479,2]
[355049582,1740881454524,-500.0,0.00025479,2]
[355049584,1740881454534,-500.0,0.00025479,2]
[355049586,1740881454543,-958.45,0.00025479,2]
[355049588,1740881454553,-3185.71,0.00025479,2]
[355049590,1740881454562,-500.0,0.00025479,2]
[355049591,1740881454571,-500.0,0.00025479,2]
[355049593,1740881454580,-500.0,0.00025479,2]
[355049595,1740881454591,-1092.49,0.00025479,2]
[355049597,1740881454601,-2932.1,0.00025479,2]
[355049599,1740881454611,-500.0,0.00025479,2]
[355049601,1740881454621,-650.83,0.00025479,2]
[355049603,1740881454631,-500.0,0.00025479,2]
[355049605,1740881454640,-500.0,0.00025479,2]
[355049607,1740881454649,-1442.4,0.00025479,2]
[355049609,1740881454658,-2420.86,0.00025479,2]
[355049611,1740881454669,-815.08,0.00025479,2]
[355049613,1740881454678,-2255.68,0.00025479,2]
[355049615,1740881454687,-3135.44,0.00025479,2]
[355049617,1740881454697,-500.0,0.00025479,2]
[355049619,1740881454707,-500.0,0.00025479,2]
[355049621,1740881454716,-713.49,0.00025479,2]
[355049623,1740881454725,-517.56,0.00025479,2]
[355049625,1740881454734,-500.0,0.00025479,2]
[355049627,1740881454743,-450.97410893,0.00025479,2]
[355049629,1740881454752,-500.0,0.00025479,2]
[355049631,1740881454763,-3194.52,0.00025479,2]
[355049632,1740881454774,-500.0,0.00025479,2]
[355049634,1740881454783,-1589.23,0.00025479,2]
[355049636,1740881454793,-500.0,0.00025479,2]
[355049638,1740881454804,-514.97,0.00025479,2]
[355049640,1740881454814,-500.0,0.00025479,2]
[355049642,1740881454824,-1284.33,0.00025479,2]
[355049644,1740881454833,-806.42,0.00025479,2]
[355049646,1740881454843,-904.53,0.00025479,2]
[355049648,1740881454853,-602.13,0.00025479,2]
[355049650,1740881454863,-2001.38,0.00025479,2]
[355049652,1740881454872,-500.0,0.00025479,2]
[355049654,1740881454881,-585.0,0.00025479,2]
[355049656,1740881454891,-1274.5,0.00025479,2]
[355049658,1740881454901,-500.0,0.00025479,2]
[355049660,1740881454911,-816.02,0.00025479,2]
[355049662,1740881454925,-566.22,0.00025479,2]
[355049664,1740881454935,-500.66,0.00025479,2]
[355049666,1740881454945,-500.0,0.00025479,2]
[355049668,1740881454955,-500.0,0.00025479,2]
[355049670,1740881454964,-500.0,0.00025479,2]
[355049672,1740881454973,-2074.9,0.00025479,2]
[355049674,1740881454983,-198.24,0.00025599,2]
[355049676,1740881454992,-425.87,0.00025655,2]
[355049678,1740881455002,-500.0,0.00025753,2]
[355049680,1740881455012,-500.0,0.00025753,2]
[355049682,1740881455021,-500.0,0.00025753,2]
[355049684,1740881455031,-500.0,0.00025753,2]
[355049686,1740881455039,-500.0,0.00025753,2]
[355049688,1740881455049,-500.0,0.00025753,2]
[355049690,1740881455058,-500.0,0.00025753,2]
[355049692,1740881455067,-500.0,0.00025753,2]
[355049694,1740881455076,-500.0,0.00025753,2]
[355049696,1740881455085,-500.0,0.00025753,2]
[355049698,1740881455094,-500.0,0.00025753,2]
[355049700,1740881455104,-500.0,0.00025753,2]
[355049702,1740881455113,-500.0,0.00025753,2]
[355049704,1740881455122,-835.24,0.00025753,2]
[355049705,1740881455131,-500.0,0.00025753,2]
[355049707,1740881455141,-500.0,0.00025753,2]
[355049709,1740881455150,-500.0,0.00025753,2]
[355049711,1740881455160,-500.0,0.00025753,2]
[355049713,1740881455171,-500.0,0.00025753,2]
[355049715,1740881455180,-304.86544354,0.00025753,2]
[355049717,1740881455189,-500.0,0.00025753,2]
[355049719,1740881455199,-1040.32,0.00025753,2]
[355049721,1740881455208,-500.0,0.00025753,2]
[355049723,1740881455218,-2264.332397,0.00025753,2]
[355049725,1740881455227,-500.0,0.00025753,2]
[355049727,1740881455236,-500.0,0.00025753,2]
[355049729,1740881455246,-500.0,0.00025753,2]
[355049731,1740881455255,-500.0,0.00025753,2]
[355049733,1740881455264,-500.0,0.00025753,2]
[355049735,1740881455273,-500.0,0.00025753,2]
[355049737,1740881455282,-500.0,0.00025753,2]
[355049739,1740881455291,-500.0,0.00025753,2]
[355049741,1740881455300,-500.0,0.00025753,2]
[355049743,1740881455309,-500.0,0.00025753,2]
[355049744,1740881455318,-762.378887,0.00025753,2]
[355049746,1740881455328,-500.0,0.00025753,2]
[355049748,1740881455337,-500.0,0.00025753,2]
[355049750,1740881455346,-500.0,0.00025753,2]
[355049752,1740881455356,-500.0,0.00025753,2]
[355049754,1740881455365,-500.0,0.00025753,2]
[355049756,1740881455374,-500.0,0.00025753,2]
[355049758,1740881455384,-500.0,0.00025753,2]
[355049760,1740881455395,-500.0,0.00025753,2]
[355049762,1740881455405,-500.0,0.00025753,2]
[355049764,1740881455418,-500.0,0.00025753,2]
[355049766,1740881455428,-500.0,0.00025753,2]
[355049768,1740881455438,-500.0,0.00025753,2]
[355049770,1740881455448,-500.0,0.00025753,2]
[355049772,1740881455458,-523.56,0.00025753,2]
[355049774,1740881455467,-806.12,0.00025753,2]
[355049776,1740881455476,-500.0,0.00025753,2]
[355049778,1740881455485,-500.0,0.00025753,2]
[355049780,1740881455495,-500.0,0.00025753,2]
[355049782,1740881455504,-517.33,0.00025753,2]
[355049784,1740881455514,-500.0,0.00025753,2]
[355049786,1740881455523,-500.0,0.00025753,2]
[355049788,1740881455532,-232.12447349,0.00025753,2]
[355049790,1740881455541,-500.0,0.00025753,2]
[355049791,1740881455550,-500.0,0.00025753,2]
[355049793,1740881455560,-746.37,0.00025753,2]
[355049795,1740881455569,-500.0,0.00025753,2]
[355049797,1740881455579,-500.0,0.00025753,2]
[355049799,1740881455589,-1782.87,0.00025753,2]
[355049802,1740881455600,-500.0,0.00025753,2]
[355049803,1740881455609,-500.0,0.00025753,2]
[355049805,1740881455620,-500.0,0.00025753,2]
[355049807,1740881455629,-562.75,0.00025753,2]
[355049809,1740881455639,-500.0,0.00025753,2]
[355049811,1740881455648,-500.0,0.00025753,2]
[355049813,1740881455657,-500.0,0.00025753,2]
[355049815,1740881455667,-218.75037728,0.00025753,2]
[355049817,1740881455677,-500.0,0.00025753,2]
[355049819,1740881455686,-500.0,0.00025753,2]
[355049821,1740881455695,-500.0,0.00025753,2]
[355049823,1740881455704,-500.0,0.00025753,2]
[355049825,1740881455714,-500.0,0.00025753,2]
[355049827,1740881455723,-1742.16,0.00025753,2]
[355049829,1740881455732,-500.0,0.00025753,2]
[355049831,1740881455741,-500.0,0.00025753,2]
[355049833,1740881455750,-500.0,0.00025753,2]
[355049835,1740881455760,-500.0,0.00025753,2]
[355049837,1740881455772,-500.0,0.00025753,2]
[355049839,1740881455781,-500.0,0.00025753,2]
[355049841,1740881455791,-1760.63,0.00025753,2]
[355049843,1740881455800,-500.0,0.00025753,2]
[355049845,1740881455810,-742.99,0.00025753,2]
[355049847,1740881455820,-500.0,0.00025753,2]
[355049849,1740881455830,-500.0,0.00025753,2]
[355049851,1740881455840,-1640.74,0.00025753,2]
[355049853,1740881455849,-2520.02,0.00025753,2]
[355049855,1740881455859,-500.0,0.00025753,2]
[355049857,1740881455869,-500.0,0.00025753,2]
[355049859,1740881455878,-558.36,0.00025753,2]
[355049861,1740881455887,-500.0,0.00025753,2]
[355049863,1740881455896,-913.31,0.00025753,2]
[355049865,1740881455906,-500.0,0.00025753,2]
[355049867,1740881455915,-500.0,0.00025753,2]
[355049869,1740881455927,-1012.61,0.00025753,2]
[355049871,1740881455936,-512.01,0.00025753,2]
[355049873,1740881455945,-500.0,0.00025753,2]
[355049874,1740881455954,-501.78,0.00025753,2]
[355049876,1740881455964,-500.0,0.00025753,2]
[355049878,1740881455973,-500.0,0.00025753,2]
[355049880,1740881455982,-500.0,0.00025753,2]
[355049882,1740881455992,-500.0,0.00025753,2]
[355049884,1740881456001,-500.0,0.00025753,2]
[355049886,1740881456010,-500.0,0.00025753,2]
[355049888,1740881456020,-500.0,0.00025753,2]
[355049890,1740881456029,-500.0,0.00025753,2]
[355049892,1740881456038,-500.0,0.00025753,2]
[355049894,1740881456048,-500.0,0.00025753,2]
[355049896,1740881456058,-500.0,0.00025753,2]
[355049898,1740881456067,-500.0,0.00025753,2]
[355049900,1740881456075,-500.0,0.00025753,2]
[355049902,1740881456085,-1913.28,0.00025753,2]
[355049904,1740881456094,-509.65,0.00025753,2]
[355049905,1740881456104,-500.0,0.00025753,2]
[355049907,1740881456113,-500.0,0.00025753,2]
[355049909,1740881456123,-500.0,0.00025753,2]
[355049912,1740881456133,-1667.9,0.00025753,2]
[355049913,1740881456142,-500.0,0.00025753,2]
[355049915,1740881456151,-500.0,0.00025753,2]
[355049917,1740881456161,-500.0,0.00025753,2]
[355049919,1740881456170,-500.0,0.00025753,2]
[355049921,1740881456179,-500.0,0.00025753,2]
[355049923,1740881456188,-500.0,0.00025753,2]
[355049925,1740881456197,-500.0,0.00025753,2]
[355049927,1740881456207,-2313.28,0.00025753,2]
[355049929,1740881456216,-1188.31,0.00025753,2]
[355049931,1740881456225,-500.0,0.00025753,2]
[355049933,1740881456234,-500.0,0.00025753,2]
[355049935,1740881456244,-214.81603407,0.00025753,2]
[355049954,1740881456422,-500.0,0.00025753,2]
[355049957,1740881456433,-500.0,0.00025753,2]
[355049958,1740881456442,-500.0,0.00025753,2]
[355049960,1740881456451,-847.63,0.00025753,2]
[355049962,1740881456461,-610.13,0.00025753,2]
[355049964,1740881456470,-602.12,0.00025753,2]
[355049965,1740881456480,-500.0,0.00025753,2]
[355049966,1740881456489,-500.0,0.00025753,2]
[355049967,1740881456498,-500.0,0.00025753,2]
[355049968,1740881456508,-500.0,0.00025753,2]
[355049969,1740881456517,-500.0,0.00025753,2]
[355049970,1740881456526,-500.0,0.00025753,2]
[355049971,1740881456535,-1701.83,0.00025753,2]
[355049972,1740881456544,-500.0,0.00025753,2]
[355049974,1740881456554,-500.0,0.00025753,2]
[355049976,1740881456563,-1199.39,0.00025753,2]
[355049978,1740881456573,-500.0,0.00025753,2]
[355049980,1740881456582,-500.0,0.00025753,2]
[355049982,1740881456591,-500.0,0.00025753,2]
[355049984,1740881456600,-500.0,0.00025753,2]
[355049986,1740881456610,-500.0,0.00025753,2]
[355049988,1740881456619,-500.0,0.00025753,2]
[355049990,1740881456628,-958.87,0.00025753,2]
[355049992,1740881456638,-500.0,0.00025753,2]
[355049994,1740881456647,-500.0,0.00025753,2]
[355049996,1740881456657,-537.3,0.00025753,2]
[355049998,1740881456666,-500.0,0.00025753,2]
[355050000,1740881456676,-1396.67,0.00025753,2]
[355050002,1740881456686,-1134.14,0.00025753,2]
[355050004,1740881456695,-614.8,0.00025753,2]
[355050007,1740881456704,-500.0,0.00025753,2]
[355050009,1740881456713,-593.89,0.00025753,2]
[355050011,1740881456723,-771.92,0.00025753,2]
[355050013,1740881456732,-665.36,0.00025753,2]
[355050015,1740881456741,-1956.37,0.00025753,2]
[355050016,1740881456751,-500.0,0.00025753,2]
[355050019,1740881456761,-586.29,0.00025753,2]
[355050020,1740881456771,-580.23,0.00025753,2]
[355050022,1740881456780,-1160.2,0.00025753,2]
[355050024,1740881456790,-500.0,0.00025753,2]
[355050026,1740881456799,-500.0,0.00025753,2]
[355050028,1740881456809,-2219.8,0.00025753,2]
[355050030,1740881456819,-500.0,0.00025753,2]
[355050032,1740881456829,-557.69,0.00025753,2]
[355050034,1740881456838,-500.0,0.00025753,2]
[355050036,1740881456847,-964.89,0.00025753,2]
[355050038,1740881456857,-2314.44,0.00025753,2]
[355050040,1740881456865,-644.5,0.00025753,2]
[355050042,1740881456875,-599.6,0.00025753,2]
[355050044,1740881456885,-1202.37,0.00025753,2]
[355050046,1740881456894,-530.02,0.00025753,2]
[355050048,1740881456903,-1069.38,0.00025753,2]
[355050051,1740881456914,-500.0,0.00025753,2]
[355050053,1740881456923,-503.61,0.00025753,2]
[355050055,1740881456933,-500.0,0.00025753,2]
[355050057,1740881456942,-500.0,0.00025753,2]
[355050059,1740881456952,-515.39,0.00025753,2]
[355050061,1740881456961,-2281.49,0.00025753,2]
[355050063,1740881456971,-1000.0,0.00025753,2]
[355050065,1740881456980,-500.0,0.00025753,2]
[355050067,1740881456989,-500.0,0.00025753,2]
[355050069,1740881456998,-2804.56,0.00025753,2]
[355050071,1740881457008,-500.0,0.00025753,2]
[355050073,1740881457017,-2255.73,0.00025753,2]
[355050075,1740881457027,-500.0,0.00025753,2]
[355050077,1740881457035,-500.0,0.00025753,2]
[355050079,1740881457044,-2017.47,0.00025753,2]
[355050081,1740881457054,-1699.31,0.00025753,2]
[355050083,1740881457063,-500.0,0.00025753,2]
[355050085,1740881457072,-243.57966296,0.00025753,2]
[355050087,1740881457081,-500.0,0.00025753,2]
[355050089,1740881457090,-846.46,0.00025753,2]
[355050091,1740881457100,-500.0,0.00025753,2]
[355050093,1740881457109,-500.0,0.00025753,2]
[355050094,1740881457119,-2302.87,0.00025753,2]
[355050096,1740881457128,-500.0,0.00025753,2]
[355050098,1740881457139,-500.0,0.00025753,2]
[355050100,1740881457148,-2423.42,0.00025753,2]
[355050102,1740881457157,-637.46,0.00025753,2]
[355050104,1740881457167,-500.0,0.00025753,2]
[355050106,1740881457176,-500.0,0.00025753,2]
[355050108,1740881457186,-2023.4,0.00025753,2]
[355050111,1740881457195,-500.0,0.00025753,2]
[355050113,1740881457205,-795.79,0.00025753,2]
[355050114,1740881457215,-500.0,0.00025753,2]
[355050117,1740881457225,-2525.09,0.00025753,2]
[355050119,1740881457235,-554.8,0.00025753,2]
[355050121,1740881457244,-608.49,0.00025753,2]
[355050123,1740881457253,-656.5,0.00025753,2]
[355050125,1740881457263,-500.0,0.00025753,2]
[355050127,1740881457273,-767.78,0.00025753,2]
[355050129,1740881457283,-2637.67,0.00025753,2]
[355050131,1740881457292,-998.66,0.00025753,2]
[355050133,1740881457301,-773.6,0.00025753,2]
[355050135,1740881457310,-913.4,0.00025753,2]
[355050137,1740881457320,-500.0,0.00025753,2]
[355050139,1740881457329,-500.0,0.00025753,2]
[355050141,1740881457339,-2612.14,0.00025753,2]
[355050143,1740881457348,-500.0,0.00025753,2]
[355050145,1740881457358,-500.0,0.00025753,2]
[355050147,1740881457367,-958.45,0.00025753,2]
[355050149,1740881457376,-3185.71,0.00025753,2]
[355050151,1740881457385,-500.0,0.00025753,2]
[355050153,1740881457395,-500.0,0.00025753,2]
[355050155,1740881457405,-500.0,0.00025753,2]
[355050157,1740881457415,-1092.49,0.00025753,2]
[355050159,1740881457425,-2932.1,0.00025753,2]
[355050161,1740881457434,-500.0,0.00025753,2]
[355050163,1740881457444,-650.83,0.00025753,2]
[355050165,1740881457453,-500.0,0.00025753,2]
[355050167,1740881457463,-636.09687827,0.00025753,2]
[355050169,1740881457472,-1442.4,0.00025753,2]
[355050171,1740881457482,-2420.86,0.00025753,2]
[355050173,1740881457491,-815.08,0.00025753,2]